[Event "Croatian 1A League 2022"]
[Site "Porec"]
[Date "2022.09.29"]
[Round "6.22"]
[White "Petkov, Vladimir"]
[Black "Zivkovic, Vjekoslav"]
[Result "1-0"]
[ECO "E49"]
[WhiteElo "2451"]
[BlackElo "2364"]
[Annotator "TA"]
[PlyCount "81"]
[EventDate "2022.09.24"]
[EventType "team-tourn"]
[EventCountry "CRO"]
[SourceTitle "playchess.com"]
[Source "ChessBase"]
[SourceQuality "1"]
[TimeControl "40/5400+30:1800+30"]

{[%evp 17,80,0,37,41,60,8,17,0,10,-2,23,0,41,25,27,29,29,0,0,0,-2,-26,-19,-50,-39,-87,-83,-75,-87,-75,-77,-74,-85,-77,-86,-84,-87,-86,-30,-51,-42,-145,-52,-77,0,0,38,0,352,331,945,898,1051,1064,1091,1090,1124,1063,1057,932,1354,1275,29965,29964,29999]} 1. d4 {[%emt 0:00:30]} Nf6 {[%emt 0:00:10]} 2. c4 {[%emt 0:00:32]} e6 {[%emt 0:00:06]} 3. Nc3 {[%emt 0:01:42]} Bb4 {[%emt 0:00:39]} 4. e3 {[%emt 0:01:06]} O-O {[%emt 0:00:14]} 5. Bd3 {[%emt 0:00:38]} d5 {[%emt 0:00:14]} 6. a3 {[%emt 0:00:37]} Bxc3+ {[%emt 0:02:38]} 7. bxc3 {[%emt 0:00:08]} c5 {[%emt 0:10:54]} 8. cxd5 {[%emt 0:02:18]} exd5 {[%emt 0:00:44]} 9. Ne2 {[%emt 0:00:11]} Bg4 {[%emt 0:05:43]} 10. f3 {[%emt 0:21:24] E49: Nimzo-Indian: Rubinstein: 5 Bd3 d5 6 a3 Bxc3+ 7 bxc3.} Bh5 {[%emt 0:00:22]} 11. g4 {[%emt 0:01:48]} ({Of course not} 11. dxc5 Nbd7 $11) (11. Rb1 $14) 11... Bg6 $11 {[%emt 0:02:24] [#]} 12. h4 $146 {[%emt 0:06:27] The position is equal.} ({Predecessor:} 12. Ng3 Qa5 13. Bxg6 fxg6 14. Bd2 Nbd7 15. O-O Rae8 16. c4 Qa6 17. g5 Nh5 18. Nxh5 gxh5 19. cxd5 cxd4 {1-0 (36) Hess,R-Scheipl,R (2350) Bad Pyrmont 1976}) 12... Bxd3 {[%emt 0:31:34]} 13. Qxd3 {[%emt 0:00:14]} Nc6 {[%emt 0:00:15]} 14. Nf4 {[%emt 0:03:53]} c4 {[%emt 0:01:27]} 15. Qc2 {[%emt 0:03:30]} Ne8 {[%emt 0:03:45]} 16. Rb1 {[%emt 0:17:17]} Rb8 {[%emt 0:04:34]} 17. g5 {[%emt 0:09:10]} b5 {[%emt 0:10:36]} 18. O-O {[%emt 0:11:51]} Nc7 {[%emt 0:00:50]} 19. e4 {[%emt 0:00:35]} (19. Qf5 {keeps more tension.} a5 20. h5 Ne7 21. Qh3) 19... a5 {[%emt 0:10:40][%cal Ba7a5,Ba5b4,Bb4b3][%mdl 32]} 20. Qf2 {[%emt 0:08:17]} Qd7 {[%emt 0:07:02]} (20... Re8 $5 {[%cal Rb5b4]}) 21. Ne2 {[%emt 0:01:04]} (21. Nh5 $15) 21... b4 $17 {[%emt 0:01:35]} 22. axb4 {[%emt 0:00:24]} axb4 {[%emt 0:00:01]} 23. Bf4 {[%emt 0:00:31]} b3 {[%emt 0:02:02]} 24. Qg3 {[%emt 0:04:50]} Rb7 {[%emt 0:02:12]} 25. Bxc7 {[%emt 0:01:51]} Rxc7 {[%emt 0:00:28]} 26. Nf4 {[%emt 0:01:03]} Ne7 {[%emt 0:00:57]} ({Reject} 26... dxe4 $6 27. fxe4 Qd6 28. h5 $11) 27. h5 {[%emt 0:00:40][%cal Bh4h5,Bh5h6][%mdl 32]} Ra7 {[%emt 0:00:15]} (27... Rb7 $17) 28. h6 $11 {[%emt 0:00:16]} g6 {[%emt 0:01:14]} 29. Rfe1 {[%emt 0:00:08]} ({Better is} 29. Ng2 $1 $15) 29... dxe4 {[%emt 0:00:43]} (29... Qd6 $17 30. Kh2 Ra2+ 31. Re2 Rfa8) 30. fxe4 $15 {[%emt 0:00:18]} Ra2 {[%emt 0:00:23]} (30... Ra6 $17) 31. Ng2 $1 $11 {[%emt 0:01:14]} f6 {[%emt 0:00:45]} 32. Rf1 {[%emt 0:00:08]} Qe6 {[%emt 0:00:24][%mdl 8192]} (32... f5 $1 $11) 33. gxf6 $18 {[%emt 0:00:49]} Rxf6 {[%emt 0:00:00]} (33... Nc6 34. e5 Rc2) 34. Qb8+ {[%emt 0:00:32]} Kf7 {[%emt 0:00:54] [#]} 35. Rxf6+ $1 {[%emt 0:00:41]} ({Worse is} 35. Qh8 {[#]} Rxg2+ $1 {[%mdl 512]} 36. Kxg2 Qxe4+ 37. Kh2 Qh4+ 38. Kg2 Qg5+ 39. Kh2 Qd2+ 40. Kg1 Qg5+ 41. Kh2 Qxh6+ 42. Kg1 Rxf1+ 43. Rxf1+ Nf5 $17) 35... Qxf6 {[%emt 0:00:39]} 36. Rf1 {[%emt 0:00:11]} Qxf1+ {[%emt 0:00:36]} 37. Kxf1 {[%emt 0:00:07]} b2 {[%emt 0:00:00]} 38. Ne1 {[%emt 0:00:31] Black must now prevent Nf3.} g5 {[%emt 0:00:12]} 39. d5 {[%emt 0:01:20]} Ng6 {[%emt 0:00:19]} 40. Qb7+ {[%emt 0:00:00]} Kf6 {[%emt 0:00:00]} 41. Qg7# {[%emt 0:00:27] Weighted Error Value: White=0.17 (very precise) /Black=0.55} 1-0

[Event "Croatian 1A League 2022"]
[Site "Porec"]
[Date "2022.09.29"]
[Round "6.23"]
[White "Medak, Bojan"]
[Black "Zelcic, Robert"]
[Result "0-1"]
[ECO "B11"]
[WhiteElo "2353"]
[BlackElo "2495"]
[Annotator "TA"]
[PlyCount "74"]
[EventDate "2022.09.24"]
[EventType "team-tourn"]
[EventCountry "CRO"]
[SourceTitle "playchess.com"]
[Source "ChessBase"]
[SourceQuality "1"]
[TimeControl "40/5400+30:1800+30"]

{[%evp 13,74,14,18,-5,0,14,13,13,29,22,28,24,31,29,37,29,49,39,43,0,0,0,0,0,8,9,6,22,6,0,0,0,-1,0,-8,-72,-86,-75,0,0,0,-67,-68,-47,-33,-268,0,0,0,0,0,-79,-63,-633,-624,-1040,-1038,-1394,-1350,-29997,-29998,-29998,-29999]} 1. e4 {[%emt 0:00:07]} c6 {[%emt 0:00:49]} 2. Nc3 {[%emt 0:00:20]} d5 {[%emt 0:00:06]} 3. Nf3 {[%emt 0:00:09]} Bg4 {[%emt 0:01:17]} 4. h3 {[%emt 0:00:15]} Bxf3 {[%emt 0:00:04]} 5. Qxf3 {[%emt 0:00:09]} e6 {[%emt 0:00:03]} 6. d3 {[%emt 0:01:37]} Nf6 {[%emt 0:02:21]} 7. Bd2 {[%emt 0:02:27]} Bb4 {[%emt 0:01:56]} 8. O-O-O {[%emt 0:07:40] B11: Caro-Kann: Two Knights Variation.} d4 {[%emt 0:08:22]} 9. Nb1 {[%emt 0:01:27]} Bxd2+ {[%emt 0:00:55]} 10. Nxd2 {[%emt 0:00:26] The position is equal.} c5 {[%emt 0:03:29]} 11. g4 {[%emt 0:03:57][%cal Bg2g4,Bg4g5][%mdl 32]} Nc6 {[%emt 0:01:24]} 12. g5 {[%emt 0:02:12]} Nd7 {[%emt 0:03:20]} 13. h4 {[%emt 0:02:24] [#]} h6 $146 {[%emt 0:05:17]} ({Predecessor:} 13... Qe7 14. Qg3 e5 15. Bh3 Nf8 16. f4 exf4 17. Qxf4 Ne6 18. Qf5 g6 19. Qf2 O-O {1-0 (49) Gavilan Diaz,M (2250)-Camacho Calle,P (2086) Seville 2015}) 14. Bh3 {[%emt 0:10:43][%cal Og5g6]} Qe7 {[%emt 0:00:04]} 15. Qg3 {[%emt 0:01:54]} O-O-O {[%emt 0:02:12]} 16. Nc4 {[%emt 0:04:34] aiming for Nd6+.} Nb6 {[%emt 0:02:25]} 17. e5 {[%emt 0:10:11]} Nxc4 {[%emt 0:02:05]} 18. dxc4 {[%emt 0:00:12]} hxg5 {[%emt 0:05:53]} 19. hxg5 {[%emt 0:00:52]} g6 {[%emt 0:00:03]} 20. f4 {[%emt 0:10:19]} Qc7 {[%emt 0:01:39]} 21. Bg4 {[%emt 0:06:52]} Rxh1 {[%emt 0:03:24]} 22. Rxh1 {[%emt 0:00:04]} d3 {[%emt 0:01:00][%cal Bd4d3,Bd3d2][%mdl 32]} 23. c3 {[%emt 0:01:39] Against Nb4} d2+ {[%emt 0:06:48]} 24. Kb1 {[%emt 0:02:44]} (24. Kc2 $1 $11 {remains equal.}) 24... Na5 $1 $17 {[%emt 0:09:27]} 25. b3 {[%emt 0:05:30]} Qb6 {[%emt 0:01:23] Black is more active.} (25... Qc6 $1 $17 {[%cal Rc6h1]} 26. Bf3 Qb6) 26. Kc2 $1 $11 {[%emt 0:00:58]} Qa6 {[%emt 0:11:52][%cal Oa5c4]} 27. Qe3 {[%emt 0:06:32] [#]} ({White should play} 27. Qf2 $11) 27... Nxc4 $1 $15 {[%emt 0:04:29]} 28. Qxc5+ {[%emt 0:00:22]} Kb8 {[%emt 0:00:02] Dancing on a razor blade.} 29. a4 $2 {[%emt 0:00:18] [#]} (29. Kb1 $15 Nb6 30. c4) 29... Nb6 $2 {[%emt 0:00:06]} (29... Qc6 $1 $19 {[%cal Rc6e4] ( -> ...Qe4+)} 30. Qxc6 Ne3+ 31. Kb1 bxc6) 30. c4 $1 $40 {[%emt 0:05:41][%mdl 128] Strongly threatening Qe7. Black needs to defend precisely.} Nd5 {[%emt 0:05:03][%cal Bb6d5,Bd5f4,Bf4d3,Bd3c5,Bc5e4][%mdl 32] Against Qe7. ...b6 is the strong threat.} 31. Kxd2 {[%emt 0:02:19]} ({Don't play} 31. cxd5 Rc8 32. Qxc8+ Kxc8 $17) 31... Nxf4+ {[%emt 0:12:18]} 32. Kc2 {[%emt 0:06:25] [#]} (32. Ke3 $1 $11 Nd3 33. Qb5 Qxb5 34. axb5 Nxe5 35. Be2) 32... Nd3 $1 $17 {[%emt 0:01:54]} 33. Qe7 {[%emt 0:00:36][%mdl 8192]} (33. Qb5 $15) 33... Qb6 $19 {[%emt 0:00:20]} 34. c5 {[%emt 0:04:55]} Nxc5 {[%emt 0:00:40]} 35. Rh3 {[%emt 0:00:07]} Ne4 {[%emt 0:00:54]} 36. Be2 {[%emt 0:00:48]} Rd2+ {[%emt 0:00:34]} 37. Kc1 {[%emt 0:00:07]} Qg1+ {[%emt 0:00:09] Weighted Error Value: White=0.93/Black=0.22 (precise)} 0-1

[Event "Croatian 1A League 2022"]
[Site "Porec"]
[Date "2022.09.29"]
[Round "6.24"]
[White "Jankovic, Alojzije"]
[Black "Mrkonjic, Nenad"]
[Result "1/2-1/2"]
[ECO "E13"]
[WhiteElo "2548"]
[BlackElo "2347"]
[Annotator "TA"]
[PlyCount "81"]
[EventDate "2022.09.24"]
[EventType "team-tourn"]
[EventCountry "CRO"]
[SourceTitle "playchess.com"]
[Source "ChessBase"]
[SourceQuality "1"]
[TimeControl "40/5400+30:1800+30"]

{[%evp 12,81,-7,0,31,26,33,30,35,25,24,5,14,8,0,7,35,17,24,-13,-2,-19,-8,-14,-7,-39,-13,-35,-46,-34,-42,-44,-37,-125,-64,-87,-37,-64,-78,-76,-87,-59,-4,-71,-50,-50,-43,-57,-47,-54,-35,-47,0,-26,-36,-17,0,-72,-55,-69,-65,-80,-54,-97,-80,-87,-85,-89,-66,-91,-75,-126]} 1. d4 {[%emt 0:01:00]} Nf6 {[%emt 0:01:43]} 2. c4 {[%emt 0:00:13]} e6 {[%emt 0:01:15]} 3. Nc3 {[%emt 0:01:07]} Bb4 {[%emt 0:01:01]} 4. Nf3 {[%emt 0:00:57]} b6 {[%emt 0:00:49]} 5. Bg5 {[%emt 0:00:45]} Bb7 {[%emt 0:02:50]} 6. Nd2 {[%emt 0:00:53]} h6 {[%emt 0:02:47]} 7. Bh4 {[%emt 0:01:06]} Nc6 {[%emt 0:03:23] E13: Queen's Indian/Nimzo-Indian hybrid: 4 Nc3 Bb7 5 Bg5 h6 6 Bh4 Bb4.} 8. e3 {[%emt 0:02:26]} Ne7 {[%emt 0:00:44]} 9. Bxf6 {[%emt 0:01:29]} gxf6 {[%emt 0:00:11] White has an edge.} 10. Qc2 {[%emt 0:00:06]} f5 {[%emt 0:04:33]} 11. a3 {[%emt 0:02:06]} Bxc3 {[%emt 0:00:13]} 12. Qxc3 {[%emt 0:00:04][%cal Od4d5]} Ng6 {[%emt 0:00:34] [#]} 13. O-O-O $146 {[%emt 0:06:51][%cal Od4d5]} ({Predecessor:} 13. f3 Qh4+ 14. g3 Qf6 15. c5 h5 16. Bb5 Ne7 17. cxb6 Nd5 18. Qd3 axb6 19. e4 fxe4 20. Nxe4 {0-1 (45) Margvelashvili,G (2556)-Moradiabadi,E (2559) Houston 2013}) 13... h5 {[%emt 0:07:56]} 14. d5 {[%emt 0:04:53] And now dxe6 would win.} Qe7 {[%emt 0:08:49]} 15. Nb3 {[%emt 0:08:45]} h4 {[%emt 0:04:49]} 16. Be2 {[%emt 0:08:38]} O-O-O {[%emt 0:01:10]} 17. Nd4 {[%emt 0:10:46]} f4 {[%emt 0:05:12]} 18. Nb5 {[%emt 0:01:31]} c6 {[%emt 0:04:01]} 19. dxc6 {[%emt 0:32:06]} ({But not} 19. Nxa7+ $2 Kb8 20. c5 Qxc5 21. Qxc5 bxc5 22. Nxc6+ dxc6 $19) (19. c5 $5) 19... dxc6 {[%emt 0:01:33]} 20. Nd4 {[%emt 0:00:05][%cal Oc4c5]} c5 {[%emt 0:08:03][%csl LRd4,LRg2]} 21. Nf3 {[%emt 0:00:22]} e5 {[%emt 0:00:43]} 22. Rhg1 {[%emt 0:02:35]} (22. Rxd8+ $15 Rxd8 23. Rd1) 22... a5 {[%emt 0:09:50]} (22... e4 $17 23. Ne1 Rxd1+ 24. Bxd1 Qg5) 23. Nd2 {[%emt 0:04:35]} f5 {[%emt 0:01:53]} (23... e4 $17) 24. g3 {[%emt 0:01:43]} fxg3 {[%emt 0:04:03]} 25. fxg3 {[%emt 0:00:46]} hxg3 {[%emt 0:01:00]} 26. Rxg3 {[%emt 0:04:01]} Rd6 {[%emt 0:13:55]} (26... Rxh2 27. Rxg6 Rxe2 28. Rxb6 $11) ({Black should try} 26... Rh6 $15 27. Nf3 Rxd1+ 28. Bxd1 e4) 27. Nf1 {[%emt 0:01:17]} (27. Rdg1 $1 $11 {remains equal.} Nh4 28. Nf3) 27... Rxd1+ {[%emt 0:01:01]} 28. Bxd1 {[%emt 0:00:06]} Qf6 {[%emt 0:01:14]} 29. Bc2 {[%emt 0:01:04][%cal Og3g6]} Ne7 {[%emt 0:00:58]} 30. Kb1 {[%emt 0:00:31]} Rh4 {[%emt 0:01:22]} 31. Rg1 {[%emt 0:00:46]} Qd6 {[%emt 0:01:18]} (31... Qe6 $15 {should be considered.}) 32. Ka1 {[%emt 0:01:32]} Kb8 {[%emt 0:00:16]} 33. Ng3 {[%emt 0:00:47]} Bc8 {[%emt 0:00:57]} 34. Nf1 {[%emt 0:00:37]} (34. Rf1 $11) 34... Qe6 {[%emt 0:01:53]} 35. Bd3 {[%emt 0:00:31]} Bb7 {[%emt 0:00:28]} 36. Rg7 {[%emt 0:00:22]} Qf6 {[%emt 0:00:15]} 37. Rg3 {[%emt 0:00:11]} Ka7 {[%emt 0:00:55]} 38. Rg1 {[%emt 0:00:25]} f4 {[%emt 0:01:46]} 39. exf4 {[%emt 0:00:15]} Qxf4 {[%emt 0:00:19]} ({Don't play} 39... Rxf4 $6 40. Ne3 $15) 40. Rg7 {[%emt 0:00:00]} Qf6 {[%emt 0:00:00]} 41. Rg3 {[%emt 0:02:44] Weighted Error Value: White=0.23 (precise) /Black=0.15 (very precise)} ({Better is} 41. Rg1) 1/2-1/2

[Event "Croatian 1A League 2022"]
[Site "Porec"]
[Date "2022.09.29"]
[Round "6.25"]
[White "Vavulin, Maxim"]
[Black "Kadric, Denis"]
[Result "1/2-1/2"]
[ECO "C42"]
[WhiteElo "2550"]
[BlackElo "2561"]
[Annotator "TA"]
[PlyCount "122"]
[EventDate "2022.09.24"]
[EventType "team-tourn"]
[EventCountry "CRO"]
[SourceTitle "playchess.com"]
[Source "ChessBase"]
[SourceQuality "1"]
[TimeControl "40/5400+30:1800+30"]

{[%evp 12,122,6,8,9,0,8,12,16,0,8,0,23,-13,-4,-12,-10,0,0,-28,-26,-21,-25,-28,-11,-12,0,0,0,0,6,7,8,0,0,0,0,0,0,0,3,4,4,0,5,-6,-4,-8,-8,-8,-8,-8,0,-10,-11,-11,-12,-15,-14,-27,-25,-63,0,0,0,0,0,0,0,0,0,0,0,0,0,0,0,0,0,0,0,0,0,0,0,0,0,0,0,0,0,0,0,0,-8,-17,-17,-17,0,0,0,-17,-17,-17,-2,-17,-17,-17,0,-17,0,-17,0]} 1. e4 {[%emt 0:00:03]} e5 {[%emt 0:00:26]} 2. Nf3 {[%emt 0:00:09]} Nf6 {[%emt 0:00:05]} 3. Nxe5 {[%emt 0:00:49]} d6 {[%emt 0:00:05]} 4. Nf3 {[%emt 0:00:23]} Nxe4 {[%emt 0:00:04]} 5. c4 {[%emt 0:00:29]} Nc6 {[%emt 0:00:14]} 6. Nc3 {[%emt 0:08:04]} Nxc3 {[%emt 0:00:11]} 7. dxc3 {[%emt 0:00:09]} g6 $1 {[%emt 0:00:07][%mdl 4] is currently scoring better than 7...Be7. C42: Petroff Defence: 3 Nxe5 and unusual White 3rd moves.} 8. Bg5 {[%emt 0:04:33]} Be7 {[%emt 0:00:33]} 9. Bh6 {[%emt 0:00:36]} Bf8 {[%emt 0:00:04]} 10. Bg5 {[%emt 0:00:39]} Be7 {[%emt 0:00:03]} 11. Bh6 {[%emt 0:00:07]} Bf8 {[%emt 0:00:04]} 12. Qd2 {[%emt 0:00:07] [#]} Qe7+ $146 {[%emt 0:04:56]} ({Predecessor:} 12... Bg4 13. Bxf8 Kxf8 14. Be2 Kg7 15. O-O Re8 16. h3 Bd7 17. Nd4 Nxd4 18. cxd4 Qf6 19. Bf3 c6 20. Qc3 Re7 {½-½ (63) Jones,G (2677)-Lenderman,A (2630) Chess.com INT 2018}) 13. Be2 $1 {[%emt 0:00:32] Active counter play!} Bxh6 {[%emt 0:03:30]} 14. Qxh6 {[%emt 0:00:02]} Bd7 {[%emt 0:18:04]} 15. O-O-O {[%emt 0:10:35]} O-O-O {[%emt 0:00:30]} (15... Qxe2 $2 16. Rhe1 Qxe1 17. Rxe1+ Be6 18. Ng5 $18) 16. Rhe1 {[%emt 0:00:54]} Qf6 {[%emt 0:01:09]} 17. c5 {[%emt 0:15:06]} dxc5 {[%emt 0:04:28]} 18. Qg5 {[%emt 0:00:07]} Qe6 {[%emt 0:27:11]} (18... Qf5 {seems wilder.} 19. Bb5 Qxg5+ 20. Nxg5 Rhe8) 19. b3 $1 {[%emt 0:01:35]} f6 {[%emt 0:00:03]} 20. Qxc5 {[%emt 0:00:54]} Qe7 {[%emt 0:01:28]} 21. Qxe7 {[%emt 0:04:20]} Nxe7 {[%emt 0:00:03]} 22. Nd4 {[%emt 0:19:04]} Nf5 {[%emt 0:00:52]} 23. Bf3 {[%emt 0:13:23]} Rde8 {[%emt 0:08:31]} 24. Nxf5 {[%emt 0:03:49]} Bxf5 {[%emt 0:00:04]} 25. g4 {[%emt 0:01:14]} Bd7 {[%emt 0:02:21]} 26. Rxe8+ {[%emt 0:05:43]} Bxe8 $11 {[%emt 0:00:11][%mdl 4096] Endgame KRB-KRB} 27. g5 {[%emt 0:01:47]} Bc6 {[%emt 0:13:01]} 28. Bg4+ {[%emt 0:01:41]} f5 {[%emt 0:00:34]} 29. Be2 {[%emt 0:00:01]} h6 {[%emt 0:01:49]} 30. h4 {[%emt 0:00:53]} hxg5 {[%emt 0:00:04]} 31. hxg5 {[%emt 0:00:05]} b5 {[%emt 0:04:24]} 32. Rd2 {[%emt 0:04:52]} Rh1+ {[%emt 0:01:34]} 33. Kc2 {[%emt 0:00:31]} Rh2 {[%emt 0:05:24]} 34. Bd3 {[%emt 0:02:17]} Rh4 {[%emt 0:00:03]} 35. Be2 {[%emt 0:01:47] Inhibits Rg4.} Rf4 {[%emt 0:00:32]} 36. f3 {[%emt 0:00:37]} Rh4 {[%emt 0:01:16]} (36... Bxf3 $15 37. Bxb5 Rg4) 37. Rd4 {[%emt 0:00:29] The position is equal.} Rh2 {[%emt 0:01:10][%csl LRe2,LRf3]} 38. Kd3 {[%emt 0:00:28]} Rg2 {[%emt 0:01:24]} 39. f4 {[%emt 0:00:23]} a6 {[%emt 0:00:27]} 40. b4 {[%emt 0:00:00]} Be4+ {[%emt 0:00:00]} 41. Ke3 {[%emt 0:01:27]} Rg3+ {[%emt 0:04:35]} 42. Kd2 {[%emt 0:00:30]} Rg1 {[%emt 0:03:19]} 43. c4 {[%emt 0:02:05]} Bc6 {[%emt 0:00:19]} 44. cxb5 {[%emt 0:04:57]} axb5 {[%emt 0:00:51]} 45. Rd3 {[%emt 0:01:18]} Ra1 {[%emt 0:01:52]} 46. a3 {[%emt 0:00:53]} Kb7 {[%emt 0:02:09]} 47. Ke3 {[%emt 0:02:12]} Kb6 {[%emt 0:03:12]} 48. Kd4 {[%emt 0:01:34]} Re1 {[%emt 0:08:59]} 49. Ke3 {[%emt 0:12:29] [#] Strongly threatening Rd1.} Ra1 {[%emt 0:01:02]} 50. Rc3 {[%emt 0:03:38]} Be4 {[%emt 0:00:49]} 51. Kd4 {[%emt 0:02:26]} Re1 {[%emt 0:00:58]} 52. Ke3 {[%emt 0:02:09]} c6 {[%emt 0:01:13]} 53. Kd2 {[%emt 0:00:50]} Rh1 {[%emt 0:00:46]} 54. Ke3 {[%emt 0:00:45]} Rh4 {[%emt 0:01:52]} 55. Bd1 {[%emt 0:00:47]} Bd5 {[%emt 0:02:01]} 56. Be2 {[%emt 0:00:35]} Kc7 {[%emt 0:00:33]} 57. Bd1 {[%emt 0:00:36]} Kd6 {[%emt 0:00:31]} 58. Be2 {[%emt 0:00:26]} Be4 {[%emt 0:01:11]} 59. Bd1 {[%emt 0:00:30]} Bd5 {[%emt 0:03:13]} 60. Be2 {[%emt 0:00:19]} Be4 {[%emt 0:00:36]} 61. Bd1 {[%emt 0:00:07]} Bd5 {[%emt 0:02:08] Weighted Error Value: White=0.04 (flawless) /Black=0.03 (flawless)} 1/2-1/2

[Event "Croatian 1A League 2022"]
[Site "Porec"]
[Date "2022.09.29"]
[Round "6.26"]
[White "Saric, Ibro"]
[Black "Fercec, Nenad"]
[Result "1/2-1/2"]
[ECO "A50"]
[WhiteElo "2542"]
[BlackElo "2403"]
[Annotator "TA"]
[PlyCount "60"]
[EventDate "2022.09.24"]
[EventType "team-tourn"]
[EventCountry "CRO"]
[SourceTitle "playchess.com"]
[Source "ChessBase"]
[SourceQuality "1"]
[TimeControl "40/5400+30:1800+30"]

{[%evp 13,60,23,29,10,15,13,18,13,52,41,49,45,34,57,50,39,43,47,56,43,62,31,48,29,37,0,37,17,21,14,18,9,66,25,36,6,0,0,22,0,18,0,14,0,0,0,0,0,0]} 1. Nf3 {[%emt 0:01:05]} Nf6 {[%emt 0:00:48]} 2. c4 {[%emt 0:00:24]} b6 {[%emt 0:00:33]} 3. g3 {[%emt 0:00:33]} Bb7 {[%emt 0:00:06]} 4. Bg2 {[%emt 0:00:33]} g6 {[%emt 0:00:57]} 5. O-O {[%emt 0:03:37]} Bg7 {[%emt 0:00:13]} 6. d4 {[%emt 0:00:13]} e6 {[%emt 0:01:10]} 7. Nc3 {[%emt 0:00:23]} O-O {[%emt 0:03:37]} 8. Qc2 {[%emt 0:00:56] A50: Queen's Fianchetto Defence (1 d4 Nf6 2 c4 b6).} d5 {[%emt 0:00:17]} 9. cxd5 {[%emt 0:00:58]} exd5 {[%emt 0:00:07]} 10. Ne5 {[%emt 0:01:35]} c6 {[%emt 0:01:43]} 11. Bg5 {[%emt 0:03:44]} h6 {[%emt 0:04:11]} 12. Bxf6 {[%emt 0:00:12]} Bxf6 {[%emt 0:00:14] [#]} 13. f4 $146 {[%emt 0:05:41]} ({Predecessor:} 13. e4 Bxe5 14. dxe5 d4 15. Rad1 c5 16. Nd5 Nc6 17. f4 Kg7 18. h4 h5 19. Rf2 {1-0 (30) Rakhmanov,A (2615)-Gadimbayli,A (2414) Konya 2019}) 13... Nd7 {[%emt 0:02:53]} 14. Rad1 {[%emt 0:06:28] Hoping for e4.} Bg7 {[%emt 0:04:56]} 15. e4 {[%emt 0:14:34][%cal Re4d5]} Nf6 {[%emt 0:00:46]} 16. exd5 {[%emt 0:02:40]} cxd5 {[%emt 0:00:45]} 17. Rfe1 {[%emt 0:00:43]} Qd6 {[%emt 0:31:49]} 18. Bf3 {[%emt 0:17:39]} a6 {[%emt 0:02:24]} 19. Qb3 {[%emt 0:11:08]} Rab8 {[%emt 0:01:26]} 20. a3 {[%emt 0:11:59]} (20. Na4 $5 {[%cal Rb3b6]}) 20... Rfd8 {[%emt 0:09:47]} 21. Kg2 {[%emt 0:00:00]} h5 {[%emt 0:05:31]} 22. Rc1 {[%emt 0:00:00]} Bf8 {[%emt 0:01:10]} (22... b5 $11) 23. Rc2 {[%emt 0:00:00][%cal Oc3e4]} b5 {[%emt 0:02:34]} 24. Na2 {[%emt 0:06:09][%cal Of4f5]} Rbc8 {[%emt 0:02:20] The position is equal.} 25. Rec1 {[%emt 0:01:51]} Rxc2+ {[%emt 0:00:17]} 26. Rxc2 {[%emt 0:00:21]} Qb6 {[%emt 0:00:15]} 27. Qe3 {[%emt 0:04:33][%cal Of4f5]} Rc8 {[%emt 0:01:37]} 28. Rxc8 {[%emt 0:00:28]} Bxc8 {[%emt 0:00:05]} 29. Nb4 {[%emt 0:00:18]} Qe6 {[%emt 0:01:56]} 30. Qc3 {[%emt 0:01:49] Active counter play!} Bxb4 {[%emt 0:07:41] Weighted Error Value: White=0.12 (very precise) /Black=0.11 (very precise)} 1/2-1/2